bitfinex-derivatives/quotes_BTCF0:USTF0_20260107
["timestamp","ask_amount","ask_price","bid_price","bid_amount"]
[1767746185681,0.18174963,93350.0,93331.0,0.09302475]
[1767746185981,0.18174963,93350.0,93339.0,0.010718]
[1767746187177,0.09058963,93350.0,93337.0,0.010718]
[1767746187384,0.18174963,93350.0,93337.0,0.010718]
[1767746190386,0.27792382,93350.0,93337.0,0.010718]
[1767746190688,0.27792382,93350.0,93338.0,0.010718]
[1767746191186,0.18676382,93350.0,93338.0,0.010718]
[1767746191490,0.27792382,93350.0,93338.0,0.010718]
[1767746192186,0.27792382,93350.0,93339.0,0.010718]
[1767746192487,0.27792382,93350.0,93336.0,0.010718]
[1767746193278,0.09686474,93349.0,93336.0,0.010718]
[1767746194192,0.19180294,93349.0,93334.0,0.010719]
[1767746194380,0.19180294,93346.0,93330.0,0.010719]
[1767746194580,0.19180294,93346.0,93330.0,0.09029003]
[1767746194981,0.19180294,93346.0,93324.0,0.19214882]
[1767746195488,0.19180294,93346.0,93325.0,0.09111262]
[1767746196189,0.19180294,93346.0,93332.0,0.010719]
[1767746196587,0.19180294,93346.0,93325.0,0.05436162]
[1767746196790,0.19180294,93346.0,93325.0,0.15414982]
[1767746197185,0.19180294,93346.0,93334.0,0.010719]
[1767746197385,0.19180294,93346.0,93332.0,0.010719]
[1767746197586,0.19180294,93346.0,93325.0,0.15414982]
[1767746197587,0.19180294,93346.0,93329.0,0.010719]
[1767746197787,0.09686474,93345.0,93325.0,0.06486882]
[1767746198294,0.09686474,93345.0,93329.0,0.010719]
[1767746198992,0.0949382,93344.0,93325.0,0.02305782]
[1767746199188,0.0949382,93344.0,93329.0,0.010719]
[1767746199689,0.0949382,93344.0,93330.0,0.010719]
[1767746200293,0.0949382,93344.0,93334.0,0.010719]
[1767746201295,0.0949382,93344.0,93337.0,0.010718]
[1767746201486,0.09686474,93345.0,93342.0,0.010718]
[1767746201692,0.09686474,93345.0,93339.0,0.010718]
[1767746202094,0.09686474,93345.0,93340.0,0.010718]
[1767746202589,0.09686474,93345.0,93341.0,0.010718]
[1767746203094,7.4e-07,93345.0,93344.0,0.010717]
[1767746203596,0.09116,93350.0,93344.0,0.010717]
[1767746204497,0.09116,93350.0,93345.0,0.010717]
[1767746204893,0.09116,93350.0,93336.0,0.010718]
[1767746205097,0.09116,93351.0,93347.0,0.010717]
[1767746205298,0.09116,93351.0,93338.0,0.010718]
[1767746205601,0.09686474,93350.0,93338.0,0.010718]
[1767746206203,0.09686474,93349.0,93338.0,0.010718]
[1767746206393,0.09686474,93348.0,93334.0,0.010718]
[1767746206592,0.19180294,93347.0,93334.0,0.010718]
[1767746206903,7.4e-07,93346.0,93343.0,0.010717]
[1767746207096,7.4e-07,93346.0,93330.0,0.06812603]
[1767746207496,0.09116,93351.0,93344.0,0.010717]
[1767746207794,0.09116,93351.0,93336.0,0.010718]
[1767746208102,0.1860982,93351.0,93330.0,0.04809223]
[1767746208304,0.1860982,93351.0,93330.0,0.02223223]
[1767746208601,0.0949382,93351.0,93336.0,0.010718]
[1767746208992,0.0949382,93351.0,93342.0,0.010718]
[1767746209193,0.09116,93352.0,93337.0,0.010718]
[1767746209494,0.09686474,93349.0,93338.0,0.010718]
[1767746209694,0.09686474,93349.0,93330.0,0.19007823]
[1767746209904,0.09686474,93349.0,93331.0,0.0997882]
[1767746210305,0.09686474,93349.0,93335.0,0.010718]
[1767746211697,0.09686474,93349.0,93337.0,0.010718]
[1767746212000,0.09686474,93349.0,93330.0,0.00608791]
[1767746212205,0.09686474,93349.0,93339.0,0.010718]
[1767746212406,0.09686474,93349.0,93330.0,0.09029003]
[1767746213193,0.09686474,93349.0,93342.0,0.010718]
[1767746213394,0.09686474,93348.0,93339.0,0.010718]
[1767746214009,0.09686474,93348.0,93331.0,0.010719]
[1767746214304,7.4e-07,93347.0,93330.0,0.11100523]
[1767746214809,0.09029003,93350.0,93346.0,0.010717]
[1767746215109,0.0949382,93354.0,93338.0,0.010718]
[1767746215499,0.0949382,93354.0,93344.0,0.010717]
[1767746216514,0.0949382,93354.0,93345.0,0.010717]
[1767746216714,0.02961745,93353.0,93345.0,0.010717]
[1767746217108,0.02961745,93353.0,93342.0,0.010718]
[1767746217312,0.02889708,93352.0,93342.0,0.010718]
[1767746217710,0.02889708,93352.0,93343.0,0.010717]
[1767746217913,0.02889708,93351.0,93331.0,0.1105072]
[1767746218619,0.02889708,93351.0,93335.0,0.010718]
[1767746220024,0.02867946,93350.0,93331.0,0.0214152]
[1767746220226,0.02867946,93350.0,93343.0,0.010717]
[1767746220521,0.02867946,93350.0,93344.0,0.010717]
[1767746221222,0.09029003,93354.0,93335.0,0.012595]
[1767746221425,0.09029003,93350.0,93335.0,0.012595]
[1767746221907,0.09029003,93345.0,93322.0,0.10188]
[1767746222111,0.010718,93343.0,93322.0,0.09116]
[1767746222316,0.09029003,93332.0,93322.0,0.09116]
[1767746222509,0.09029003,93332.0,93322.0,0.08616]
[1767746222729,0.09029003,93332.0,93327.0,0.010719]
[1767746223020,0.06065796,93336.0,93327.0,0.010719]
[1767746223219,0.06065796,93336.0,93322.0,0.08616]
[1767746223623,0.07957003,93340.0,93322.0,0.08616]
[1767746223824,0.07957003,93340.0,93322.0,0.05337]
[1767746224423,0.010718,93338.0,93322.0,0.05337]
[1767746224621,0.09029003,93332.0,93312.0,0.11743076]
[1767746224817,0.010719,93330.0,93313.0,0.08922]
[1767746225017,0.09029003,93332.0,93313.0,0.099941]
[1767746225225,0.10100903,93332.0,93316.0,0.010721]
[1767746225529,0.10100903,93332.0,93302.0,0.10974944]
[1767746225530,0.06511251,93331.0,93307.0,0.12379281]
[1767746225730,0.0001005,93330.0,93307.0,0.12379281]
[1767746225918,0.010719,93328.0,93307.0,0.12379281]
[1767746226118,0.09029003,93320.0,93309.0,0.010721]
[1767746226318,0.06511251,93324.0,93309.0,0.010721]
[1767746226519,0.07583251,93324.0,93309.0,0.010721]
[1767746226826,0.00043688,93323.0,93309.0,0.010721]
[1767746227230,0.00043688,93323.0,93307.0,0.09116]
[1767746227426,0.09029003,93320.0,93307.0,0.09116]
[1767746228522,0.09029003,93320.0,93307.0,0.08946]
[1767746228828,0.09116,93332.0,93307.0,0.08869]
[1767746229024,0.09029003,93320.0,93307.0,0.08869]
[1767746229230,0.09029003,93320.0,93307.0,0.08643]
[1767746229629,0.09029003,93320.0,93303.0,0.09116]
[1767746230027,0.09029003,93320.0,93303.0,0.08883]
[1767746230727,0.09029003,93320.0,93303.0,0.01423]
[1767746231127,0.00089204,93323.0,93307.0,0.010722]
[1767746232631,0.01644682,93323.0,93307.0,0.010722]
[1767746232930,0.00133796,93322.0,93307.0,0.010722]
[1767746233425,0.00133796,93322.0,93303.0,0.09116]
[1767746233630,0.00133796,93318.0,93303.0,0.099502]
[1767746233832,0.00133796,93316.0,93303.0,0.08878]
[1767746234130,0.00133796,93316.0,93304.0,0.006132]
[1767746234724,0.00133796,93316.0,93305.0,0.11743076]
[1767746235032,0.00133796,93316.0,93306.0,0.010722]
[1767746235334,0.00133796,93316.0,93305.0,0.11743076]
[1767746235531,0.00133796,93316.0,93305.0,0.12815276]
[1767746237024,0.00133796,93316.0,93305.0,0.12721276]
[1767746237923,0.00133796,93316.0,93305.0,0.010722]
[1767746238222,0.1021842,93319.0,93305.0,0.008362]
[1767746238628,0.1021842,93319.0,93300.0,0.09116]
[1767746239033,0.00095034,93319.0,93300.0,0.18931181]
[1767746239233,0.01558799,93323.0,93305.0,0.09902744]
[1767746239534,0.09116,93326.0,93314.0,0.010721]
[1767746239730,0.01567233,93326.0,93313.0,0.09902744]
[1767746239932,0.09236711,93343.0,93331.0,0.010719]
[1767746240234,0.09236711,93343.0,93310.0,0.09116]
[1767746240235,0.09116,93342.0,93332.0,0.010719]
[1767746240830,0.18352711,93342.0,93328.0,0.010719]
[1767746241027,0.010719,93334.0,93321.0,0.01072]
[1767746241231,0.09236711,93333.0,93321.0,0.01072]
[1767746241429,0.09236711,93333.0,93324.0,0.01072]
[1767746242036,0.09236711,93333.0,93318.0,0.01072]
[1767746242738,0.09236711,93333.0,93320.0,0.01072]
[1767746243528,0.09236711,93333.0,93322.0,0.01072]
[1767746243727,0.09236711,93337.0,93326.0,0.010719]
[1767746243939,0.19337514,93340.0,93326.0,0.010719]
[1767746244437,0.09236711,93339.0,93326.0,0.010719]
[1767746248635,0.09236711,93339.0,93320.0,0.18844184]
[1767746248636,0.49236711,93339.0,93320.0,0.18844184]
[1767746248839,0.09236711,93339.0,93321.0,0.09815181]
[1767746249536,0.09236711,93339.0,93332.0,0.010719]
[1767746249739,0.09116,93354.0,93342.0,0.010718]
[1767746249941,0.08616,93354.0,93342.0,0.010718]
[1767746250131,0.09236711,93353.0,93342.0,0.010718]
[1767746250433,0.09236711,93353.0,93339.0,0.010718]
[1767746250638,0.10308311,93353.0,93339.0,0.010718]
[1767746251438,0.10092415,93351.0,93336.0,0.10886981]
[1767746251638,0.10092415,93351.0,93338.0,0.010718]
[1767746252035,0.10092415,93351.0,93336.0,0.00451842]
[1767746252234,0.10092415,93351.0,93332.0,0.09902744]
[1767746252532,0.09020715,93351.0,93340.0,0.010718]
[1767746252739,0.10216623,93354.0,93348.0,0.010717]
[1767746252933,0.01600623,93354.0,93348.0,0.010717]
[1767746253135,0.09116,93358.0,93340.0,0.09029003]
[1767746253535,0.18136715,93358.0,93343.0,0.010717]
[1767746253840,0.09020715,93358.0,93347.0,0.010717]
[1767746254028,0.0156719,93358.0,93353.0,0.010716]
[1767746254231,0.09116,93362.0,93353.0,0.010716]
[1767746254433,0.01599596,93362.0,93350.0,0.10100703]
[1767746254635,0.09116,93363.0,93350.0,0.010717]
[1767746254835,0.18136715,93363.0,93350.0,0.010717]
[1767746255339,0.09020715,93362.0,93350.0,0.010717]
[1767746256040,0.10582056,93362.0,93352.0,0.010716]
[1767746256241,0.10582056,93362.0,93345.0,0.08358711]
[1767746256539,0.10582056,93362.0,93349.0,0.010717]
[1767746257338,0.01561341,93362.0,93351.0,0.010717]
[1767746257652,0.01561341,93362.0,93338.0,0.010718]
[1767746257653,0.09020715,93368.0,93334.0,0.010719]
[1767746257834,0.09116,93366.0,93335.0,0.09116]
[1767746258029,0.1056553,93368.0,93335.0,0.09116]
[1767746258235,0.010715,93367.0,93351.0,0.0972719]
[1767746258429,0.010715,93367.0,93350.0,0.01067738]
[1767746258653,0.09020715,93360.0,93334.0,0.4]
[1767746258944,0.18870462,93334.0,93309.0,0.010721]
[1767746259149,0.18870462,93334.0,93321.0,0.01072]
[1767746259338,0.18870462,93334.0,93307.0,0.09116]
[1767746259738,0.18870462,93334.0,93318.0,0.01072]
[1767746259934,0.18870462,93334.0,93316.0,0.010721]
[1767746260140,0.09849747,93334.0,93321.0,0.01072]
[1767746261953,0.09116,93335.0,93321.0,0.01072]
[1767746263245,0.09116,93335.0,93316.0,0.09598763]
[1767746263246,0.27986462,93335.0,93319.0,0.01072]
[1767746263545,0.010719,93334.0,93316.0,0.09598763]
[1767746263747,0.19942362,93332.0,93313.0,0.010721]
[1767746263940,0.18870462,93331.0,93313.0,0.010721]
[1767746264140,0.18870462,93329.0,93313.0,0.010721]
[1767746264451,0.18870462,93329.0,93315.0,0.010721]
[1767746264950,0.09116,93335.0,93315.0,0.09598763]
[1767746265158,0.09116,93335.0,93318.0,0.01072]
[1767746265352,0.09116,93334.0,93318.0,0.01072]
[1767746265552,0.101879,93334.0,93316.0,0.09598763]
[1767746266435,0.010719,93333.0,93316.0,0.10670863]
[1767746266938,0.101879,93333.0,93316.0,0.10670863]
[1767746269747,0.010719,93331.0,93316.0,0.10670863]
[1767746269937,0.18870462,93332.0,93313.0,0.010721]
[1767746270249,0.19942362,93327.0,93313.0,0.010721]
[1767746272147,0.09020715,93326.0,93310.0,0.010721]
[1767746272451,0.09020715,93326.0,93307.0,0.18714763]
[1767746272452,0.09020715,93324.0,93307.0,0.09116]
[1767746272845,0.09849747,93325.0,93307.0,0.09116]
[1767746273251,0.09849747,93325.0,93307.0,0.18714763]
[1767746274245,0.18870462,93331.0,93310.0,0.09598763]
[1767746274452,0.18870462,93331.0,93311.0,0.09598763]
[1767746274754,0.19942362,93331.0,93314.0,0.010721]
[1767746275250,0.19942362,93331.0,93316.0,0.010721]
[1767746275651,0.18870462,93331.0,93317.0,0.01072]
[1767746276349,0.09116,93331.0,93313.0,0.09598763]
[1767746276652,0.09116,93331.0,93318.0,0.01072]
[1767746277057,0.101879,93331.0,93315.0,0.010721]
[1767746277558,0.09020715,93330.0,93316.0,0.01072]
[1767746278844,0.09020715,93330.0,93317.0,0.01072]
[1767746279854,0.09020715,93330.0,93318.0,0.01072]
[1767746280549,0.09020715,93330.0,93317.0,0.01072]
[1767746281851,0.18633936,93329.0,93316.0,0.010721]
[1767746282045,0.09271406,93328.0,93316.0,0.010721]
[1767746282248,0.18633936,93328.0,93316.0,0.010721]
[1767746282446,0.09271406,93327.0,93310.0,0.00573076]
[1767746282644,0.10343306,93327.0,93313.0,0.010721]
[1767746282859,0.09271406,93322.0,93314.0,0.010721]
[1767746283056,0.09271406,93322.0,93312.0,0.010721]
[1767746283953,0.0936253,93323.0,93314.0,0.010721]
[1767746284154,0.0936253,93323.0,93311.0,0.010721]
[1767746284456,0.0936253,93323.0,93313.0,0.010721]
[1767746287358,0.09271406,93325.0,93313.0,0.010721]
[1767746287668,0.0936253,93328.0,93308.0,0.10291459]
[1767746288173,0.09271406,93330.0,93316.0,0.010721]
[1767746288472,0.09271406,93331.0,93319.0,0.01072]
[1767746288663,0.09271406,93330.0,93316.0,0.010721]
[1767746288970,0.09271406,93329.0,93316.0,0.010721]
[1767746290364,0.09271406,93329.0,93319.0,0.01072]
[1767746291067,0.0936253,93328.0,93321.0,0.01072]
[1767746291267,0.18633936,93328.0,93309.0,0.010721]
[1767746292168,0.18633936,93328.0,93320.0,0.01072]
[1767746293176,0.18633936,93328.0,93322.0,0.01072]
[1767746294972,0.0936253,93327.0,93323.0,0.01072]
[1767746295361,0.0936253,93327.0,93318.0,0.01072]
[1767746299175,0.0936253,93327.0,93310.0,0.00573076]
[1767746299772,0.0936253,93327.0,93311.0,0.010721]
[1767746299971,0.0936253,93327.0,93310.0,0.00573076]
[1767746300276,0.0936253,93327.0,93315.0,0.010721]
[1767746301371,0.0936253,93327.0,93310.0,0.00299907]
[1767746303174,0.0936253,93327.0,93320.0,0.01072]
[1767746303475,0.0936253,93327.0,93310.0,0.01372007]
[1767746303669,0.0936253,93327.0,93320.0,0.01072]
[1767746303869,0.18633936,93327.0,93320.0,0.01072]
[1767746304376,0.18633936,93327.0,93321.0,0.01072]
[1767746305271,0.0936253,93326.0,93322.0,0.01072]
[1767746305876,0.09271406,93331.0,93315.0,0.010721]
[1767746306077,0.09271406,93331.0,93322.0,0.01072]
[1767746306272,0.09271406,93331.0,93324.0,0.01072]
[1767746307166,0.09271406,93331.0,93307.0,0.18834383]
[1767746307167,0.09271406,93331.0,93307.0,0.10116734]
[1767746307372,0.09271406,93331.0,93307.0,0.19401543]
[1767746307578,0.09271406,93331.0,93322.0,0.01072]
[1767746307778,0.09271406,93330.0,93322.0,0.01072]
[1767746309277,0.09271406,93330.0,93308.0,0.010722]
[1767746309780,0.09271406,93330.0,93324.0,0.01072]
[1767746310081,0.09271406,93325.0,93303.0,0.010722]
[1767746310268,0.09271406,93314.0,93304.0,0.010722]
[1767746310474,0.18633936,93312.0,93299.0,0.00166566]
[1767746310675,0.09271406,93309.0,93299.0,0.00166566]
[1767746311185,3.6e-07,93308.0,93305.0,0.010722]
[1767746311871,0.09116,93318.0,93308.0,0.010721]
[1767746312071,0.09116,93318.0,93305.0,0.010722]
[1767746312272,0.09116,93318.0,93307.0,0.010722]
[1767746312976,0.10188,93318.0,93304.0,0.010722]
[1767746313178,0.19596708,93314.0,93303.0,0.010722]
[1767746313374,0.09976289,93312.0,93299.0,0.00166566]
[1767746313586,0.010721,93314.0,93290.0,0.09116]
[1767746313587,0.06712318,93307.0,93290.0,0.09116]
[1767746314079,0.06712318,93307.0,93301.0,0.010722]
[1767746314288,0.08362914,93307.0,93301.0,0.010722]
[1767746314788,0.08362914,93307.0,93291.0,0.010723]
[1767746315676,0.08362914,93307.0,93301.0,0.010722]
[1767746315888,0.08362914,93307.0,93303.0,0.010722]
[1767746316281,0.09116,93318.0,93304.0,0.010722]
[1767746316983,0.09116,93318.0,93305.0,0.010722]
[1767746317287,0.09116,93318.0,93295.0,0.010723]
[1767746317583,0.10730211,93318.0,93305.0,0.010722]
[1767746318385,0.0186613,93317.0,93305.0,0.010722]
[1767746319488,0.10730211,93318.0,93298.0,0.09026611]
[1767746319693,0.12607947,93318.0,93306.0,0.010722]
[1767746320587,0.01877736,93312.0,93297.0,0.010723]
[1767746320789,0.41614211,93318.0,93290.0,0.09116]
[1767746320790,0.01877736,93306.0,93290.0,0.09116]
[1767746320989,0.09036212,93300.0,93290.0,0.09116]
[1767746321288,0.09116,93317.0,93290.0,0.09116]
[1767746321590,0.09116,93316.0,93313.0,0.010721]
[1767746321795,0.09116,93317.0,93301.0,0.09026611]
[1767746322094,0.09116,93317.0,93302.0,0.010722]
[1767746322300,0.00214297,93329.0,93316.0,0.010721]
[1767746322301,1.1e-07,93319.0,93316.0,0.010721]
[1767746322499,0.09116,93323.0,93310.0,0.010721]
[1767746322986,0.09116,93323.0,93317.0,0.01072]
[1767746323495,0.09116,93323.0,93316.0,0.010721]
[1767746325097,0.09116,93323.0,93306.0,0.01072]
[1767746325895,0.09116,93323.0,93287.0,0.21631303]
[1767746325896,0.07401741,93315.0,93287.0,0.21631303]
[1767746326098,0.16437953,93310.0,93288.0,0.1203]
[1767746326291,0.08473841,93309.0,93291.0,0.010723]
[1767746326490,0.09036212,93300.0,93291.0,0.010723]
[1767746326999,0.09036212,93300.0,93293.0,0.010723]
[1767746327191,0.07401741,93305.0,93293.0,0.010723]
[1767746331697,0.07401741,93305.0,93295.0,0.010723]
[1767746331899,0.010721,93311.0,93292.0,0.09026611]
[1767746332100,0.010721,93309.0,93292.0,0.09026611]
[1767746333209,0.010721,93309.0,93295.0,0.010723]
[1767746333408,0.010721,93309.0,93292.0,0.09026611]
[1767746334605,0.09116,93312.0,93295.0,0.010723]
[1767746334807,0.1648845,93312.0,93295.0,0.010723]
[1767746335305,0.07375778,93306.0,93295.0,0.010723]
[1767746335608,0.010722,93308.0,93294.0,0.010723]
[1767746335806,0.010722,93308.0,93290.0,0.09116]
[1767746336105,0.10108312,93310.0,93290.0,0.09116]
[1767746336300,0.09116,93312.0,93299.0,0.010723]
[1767746336499,0.010721,93311.0,93298.0,0.010723]
[1767746336798,0.010721,93311.0,93293.0,0.09026611]
[1767746336799,0.010721,93311.0,93297.0,0.010723]
[1767746339308,0.09036212,93310.0,93297.0,0.010723]
[1767746339716,0.09036212,93310.0,93299.0,0.010723]
[1767746340014,0.010721,93311.0,93295.0,0.09278589]
[1767746340318,0.09036212,93310.0,93295.0,0.09278589]
[1767746340815,0.010722,93308.0,93296.0,0.010723]
[1767746341314,0.010722,93308.0,93290.0,0.09116]
[1767746341613,0.010722,93308.0,93295.0,0.010723]
[1767746342201,0.010722,93307.0,93295.0,0.010723]
[1767746342512,0.09116,93312.0,93261.0,0.09817985]
[1767746342513,0.07286266,93284.0,93261.0,0.09817985]
[1767746342704,0.09036212,93280.0,93262.0,0.09817985]
[1767746342898,0.07286266,93284.0,93262.0,0.09817985]
[1767746342899,0.07286266,93284.0,93272.0,0.010726]
[1767746343214,0.07286266,93284.0,93264.0,0.010726]
[1767746343414,0.07286266,93284.0,93277.0,0.010725]
[1767746343603,0.16406266,93284.0,93277.0,0.010725]
[1767746343804,0.4,93283.0,93266.0,0.09817985]
[1767746344111,6.6e-07,93284.0,93276.0,0.010725]
[1767746344311,6.6e-07,93284.0,93283.0,0.010724]
[1767746344718,6.6e-07,93284.0,93281.0,0.010725]
[1767746345310,0.01072,93326.0,93278.0,0.19746388]
[1767746345511,0.09036212,93310.0,93285.0,0.09817985]
[1767746345717,0.0912,93309.0,93298.0,0.010723]
[1767746345906,0.0912,93309.0,93285.0,0.09817985]
[1767746346106,0.09036212,93300.0,93296.0,0.010723]
[1767746346307,0.0912,93309.0,93296.0,0.010723]
[1767746346805,0.010722,93307.0,93285.0,0.09817985]
[1767746347008,0.09036212,93295.0,93271.0,0.09817985]
[1767746347207,1.2e-07,93281.0,93278.0,0.010725]
[1767746347414,0.09036212,93288.0,93278.0,0.010725]
[1767746347810,0.09036212,93290.0,93266.0,0.010726]
[1767746348018,0.09036212,93290.0,93280.0,0.010725]
[1767746348916,0.09036212,93290.0,93276.0,0.010725]
[1767746349117,0.09036212,93290.0,93278.0,0.010725]
[1767746349412,0.09036212,93290.0,93266.0,0.010726]
[1767746351018,0.101923,93294.0,93266.0,0.010726]
[1767746351221,0.09036212,93290.0,93276.0,0.010725]
[1767746353224,0.10108612,93290.0,93273.0,0.010725]
[1767746353519,0.10108612,93290.0,93275.0,0.010725]
[1767746354616,0.09036212,93290.0,93265.0,0.09817985]
[1767746354812,0.09036212,93280.0,93267.0,0.010726]
[1767746355210,0.09036212,93280.0,93264.0,0.010727]
[1767746355821,0.10108712,93280.0,93264.0,0.010727]
[1767746357222,0.09036212,93280.0,93266.0,0.010726]
[1767746357413,0.09036212,93280.0,93265.0,0.09817985]
[1767746357618,0.010725,93278.0,93265.0,0.09817985]
[1767746357820,0.010725,93278.0,93265.0,0.10890585]
[1767746358019,0.010725,93278.0,93265.0,0.010726]
[1767746359629,0.09036212,93280.0,93265.0,0.010726]
[1767746360020,0.010725,93279.0,93265.0,0.010726]
[1767746363036,0.010725,93278.0,93263.0,0.010727]
[1767746363237,0.010725,93278.0,93265.0,0.010726]
[1767746363537,0.09036212,93280.0,93267.0,0.010726]
[1767746363739,0.010724,93285.0,93266.0,0.19746388]
[1767746364035,0.010724,93283.0,93271.0,0.09817985]
[1767746365236,0.0912,93284.0,93271.0,0.09817985]
[1767746365636,0.0912,93284.0,93272.0,0.010726]
[1767746366943,0.0912,93284.0,93271.0,0.09817985]
[1767746367145,0.0912,93284.0,93270.0,0.010726]
[1767746368043,0.0912,93284.0,93271.0,0.010726]
[1767746368345,0.0912,93284.0,93273.0,0.010725]
[1767746368643,0.0912,93284.0,93272.0,0.010726]
[1767746370948,0.0912,93284.0,93269.0,0.09817985]
[1767746371249,0.0912,93292.0,93282.0,0.09817985]
[1767746371435,0.09334366,93299.0,93292.0,0.010723]
[1767746371634,0.0826038,93308.0,93297.0,0.010723]
[1767746371847,0.0912,93307.0,93282.0,0.010724]
[1767746372043,0.0912,93307.0,93300.0,0.010722]
[1767746372243,0.0912,93307.0,93294.0,0.010723]
[1767746372549,0.0912,93307.0,93296.0,0.010723]
[1767746374746,0.17477955,93307.0,93296.0,0.010723]
[1767746375051,0.08357955,93306.0,93296.0,0.010723]
[1767746377051,0.08357955,93306.0,93293.0,0.010723]
[1767746377248,0.08357955,93306.0,93295.0,0.010723]
[1767746378351,0.08357955,93306.0,93297.0,0.010723]
[1767746378552,0.08357955,93306.0,93289.0,0.09790295]
[1767746378848,0.0912,93307.0,93290.0,0.09790295]
[1767746379058,0.0912,93311.0,93301.0,0.010722]
[1767746379255,0.0912,93311.0,93295.0,0.09790295]
[1767746379440,0.0912,93311.0,93293.0,0.00034532]
[1767746379841,0.08260351,93312.0,93293.0,0.00034532]
[1767746380559,0.08260351,93312.0,93298.0,0.010723]
[1767746380756,0.10517786,93311.0,93295.0,0.010723]
[1767746381061,0.09445686,93309.0,93293.0,0.010723]
[1767746381261,0.10517886,93305.0,93290.0,0.010723]
[1767746381860,0.09445686,93305.0,93289.0,0.010724]
[1767746382256,0.10517886,93304.0,93289.0,0.010724]
[1767746382458,0.19075123,93297.0,93283.0,0.101924]
[1767746382756,0.09445686,93296.0,93283.0,0.0912]
[1767746383252,0.09445686,93297.0,93284.0,0.010724]
[1767746383451,0.09445686,93297.0,93283.0,0.0912]
[1767746383845,0.09445686,93297.0,93283.0,0.101924]
[1767746384449,0.09445686,93295.0,93283.0,0.0912]
[1767746384662,0.10517986,93295.0,93283.0,0.0912]
[1767746385962,0.010723,93292.0,93283.0,0.0912]
[1767746386262,0.010723,93292.0,93278.0,0.0912]
[1767746387161,0.10517986,93292.0,93278.0,0.0912]
[1767746387358,0.010724,93290.0,93278.0,0.0912]
[1767746389164,0.10518086,93285.0,93271.0,0.0912]
[1767746389361,0.10518086,93288.0,93274.0,0.010725]
[1767746389659,0.010724,93288.0,93274.0,0.010725]
[1767746389960,0.010724,93288.0,93271.0,0.0912]
[1767746391155,0.010724,93287.0,93274.0,0.010725]
[1767746391360,0.09445686,93286.0,93271.0,0.0912]
[1767746391561,0.09445686,93282.0,93271.0,0.0912]
[1767746392254,0.09445686,93282.0,93263.0,0.2885645]
[1767746392858,0.010725,93281.0,93266.0,0.010726]
[1767746393166,0.010725,93281.0,93268.0,0.010726]
[1767746393659,0.10518186,93279.0,93265.0,0.010726]
[1767746394751,0.09445686,93279.0,93263.0,0.0912]
[1767746394950,0.09445686,93277.0,93263.0,0.0912]
[1767746395153,0.010725,93276.0,93263.0,0.0912]
[1767746395358,0.09445686,93277.0,93263.0,0.0912]
[1767746395359,0.010725,93274.0,93263.0,0.0912]
[1767746395650,0.09445686,93277.0,93263.0,0.0912]
[1767746396352,0.09629437,93279.0,93263.0,0.0912]
[1767746396553,0.28195123,93284.0,93266.0,0.010726]
[1767746396753,0.010725,93281.0,93266.0,0.010726]
[1767746396954,0.28195123,93284.0,93266.0,0.010726]
[1767746397158,0.09445686,93283.0,93266.0,0.010726]
[1767746397850,0.010725,93280.0,93264.0,0.09790295]
[1767746398051,0.010724,93283.0,93268.0,0.09549276]
[1767746398251,0.010725,93281.0,93269.0,0.18555199]
[1767746398659,0.010725,93280.0,93269.0,0.09549276]
[1767746399667,0.010725,93280.0,93266.0,0.010726]
[1767746400467,0.0912,93284.0,93266.0,0.10621876]
[1767746400669,0.18216102,93284.0,93266.0,0.10621876]
[1767746400859,0.09096102,93283.0,93266.0,0.09549276]
[1767746401166,0.09096102,93281.0,93263.0,0.0912]
[1767746401669,0.010725,93275.0,93263.0,0.0912]
[1767746402462,0.010726,93273.0,93263.0,0.0912]
[1767746402858,0.09249287,93278.0,93263.0,0.0912]
[1767746403064,0.09249287,93278.0,93259.0,0.00013505]
[1767746403065,0.19007114,93272.0,93259.0,0.00013505]
[1767746403260,0.09249287,93277.0,93251.0,0.0912]
[1767746403464,0.010726,93271.0,93257.0,0.010727]
[1767746403970,0.010726,93274.0,93260.0,0.010727]
[1767746404172,8.021e-05,93273.0,93260.0,0.010727]
[1767746404670,0.010726,93272.0,93257.0,0.010727]
[1767746404873,0.010726,93272.0,93257.0,0.10421889]
[1767746405477,0.010726,93270.0,93257.0,0.10421889]
[1767746405971,0.010726,93270.0,93257.0,0.09349189]
[1767746406470,8.021e-05,93273.0,93257.0,0.09349189]
[1767746406471,0.010726,93268.0,93257.0,0.09349189]
[1767746408073,8.021e-05,93273.0,93257.0,0.09349189]
[1767746408270,0.010726,93272.0,93259.0,0.010727]
[1767746409074,0.010726,93270.0,93258.0,0.09201013]
[1767746409263,0.010726,93270.0,93257.0,0.09349189]
[1767746409464,0.01080621,93273.0,93258.0,0.010727]
[1767746409768,0.01080621,93273.0,93257.0,0.10421889]
[1767746409970,0.010726,93271.0,93257.0,0.10421889]
[1767746410571,0.010726,93271.0,93257.0,0.19622902]
[1767746411864,0.010726,93272.0,93259.0,0.010727]
[1767746412264,0.010726,93270.0,93257.0,0.18550202]
[1767746412566,0.010726,93270.0,93257.0,0.19622902]
[1767746413265,0.010726,93270.0,93252.0,0.0912]
[1767746413266,0.09249287,93268.0,93252.0,0.010728]
[1767746413581,0.09249287,93267.0,93252.0,0.010728]
[1767746414084,0.09249287,93266.0,93252.0,0.010728]
[1767746414265,0.10321987,93265.0,93252.0,0.010728]
[1767746414464,0.0001255,93264.0,93246.0,0.09349189]
[1767746415073,0.09261837,93264.0,93246.0,0.09349189]
[1767746415582,0.11011134,93264.0,93246.0,0.09349189]
[1767746415877,0.11011134,93264.0,93253.0,0.010728]
[1767746416077,0.11011134,93264.0,93250.0,0.010728]
[1767746416266,0.11011134,93264.0,93252.0,0.010728]
[1767746416473,0.09249287,93256.0,93237.0,0.09201013]
[1767746416671,0.010728,93254.0,93237.0,0.09201013]
[1767746416872,0.00013594,93255.0,93241.0,0.010729]
[1767746417273,0.09249287,93254.0,93241.0,0.010729]
[1767746417875,0.09249287,93254.0,93234.0,0.18321013]
[1767746418281,0.010728,93253.0,93238.0,0.01073]
[1767746418478,0.010728,93253.0,93234.0,0.18321013]
[1767746418681,0.00013594,93255.0,93236.0,0.18550202]
[1767746418881,0.00013594,93255.0,93249.0,0.010728]
[1767746419085,0.09124,93259.0,93250.0,0.10273813]